[Event "Late-Titled-Tuesday-Blitz-September-19-2023"]
[Site "Chess.com"]
[Date "2023.09.19"]
[Round "3"]
[White "Hirna2005"]
[Black "Aariow"]
[Result "1-0"]
[WhiteElo "2378"]
[BlackElo "2495"]
[TimeControl "180+1"]
[EndTime "14:28:43 PDT"]
[Termination "Hirna2005 won by checkmate"]

1. e4 {[%clk 0:03:00.9]} 1... c5 {[%clk 0:02:49.3]} 2. c3 {[%clk 0:03:00.7]}
2... d5 {[%clk 0:02:49.3]} 3. exd5 {[%clk 0:03:00.9]} 3... Qxd5 {[%clk
0:02:50.2]} 4. Nf3 {[%clk 0:03:01.1]} 4... Nc6 {[%clk 0:02:50.3]} 5. Na3 {[%clk
0:03:00.7]} 5... Bg4 {[%clk 0:02:35]} 6. Be2 {[%clk 0:02:50.7]} 6... e5 {[%clk
0:02:14.7]} 7. O-O {[%clk 0:02:49.4]} 7... Nf6 {[%clk 0:02:02.4]} 8. Re1 {[%clk
0:02:44.4]} 8... Be7 {[%clk 0:01:54.6]} 9. d4 {[%clk 0:02:23.9]} 9... e4 {[%clk
0:01:19.8]} 10. Nd2 {[%clk 0:01:55.3]} 10... Bxe2 {[%clk 0:00:48.1]} 11. Qxe2
{[%clk 0:01:55.6]} 11... cxd4 {[%clk 0:00:46.3]} 12. Nb5 {[%clk 0:01:54.6]}
12... Rc8 {[%clk 0:00:20.6]} 13. c4 {[%clk 0:01:36.9]} 13... Qd7 {[%clk
0:00:07.6]} 14. Nxe4 {[%clk 0:01:36.9]} 14... O-O {[%clk 0:00:07.8]} 15. Bf4
{[%clk 0:01:19]} 15... a6 {[%clk 0:00:08]} 16. Nxf6+ {[%clk 0:01:16.5]} 16...
Bxf6 {[%clk 0:00:08.1]} 17. Nd6 {[%clk 0:01:13.7]} 17... Rcd8 {[%clk 0:00:07.8]}
18. Ne4 {[%clk 0:01:10.4]} 18... Be7 {[%clk 0:00:07.6]} 19. Rad1 {[%clk
0:01:05.2]} 19... Rfe8 {[%clk 0:00:06.2]} 20. Qf3 {[%clk 0:01:00.8]} 20... f5
{[%clk 0:00:06.5]} 21. Nd2 {[%clk 0:00:54.2]} 21... g5 {[%clk 0:00:05.5]} 22.
Qg3 {[%clk 0:00:47.5]} 22... Kh8 {[%clk 0:00:02.7]} 23. Be5+ {[%clk 0:00:34.5]}
23... Kg8 {[%clk 0:00:02.9]} 24. Nf3 {[%clk 0:00:31.4]} 24... f4 {[%clk
0:00:02.8]} 25. Bxf4 {[%clk 0:00:29.7]} 25... Kh8 {[%clk 0:00:01.9]} 26. Bxg5
{[%clk 0:00:23.6]} 26... Bxg5 {[%clk 0:00:02.4]} 27. Qxg5 {[%clk 0:00:23.2]}
27... Rg8 {[%clk 0:00:02.5]} 28. Qf6+ {[%clk 0:00:22.2]} 28... Qg7 {[%clk
0:00:03.1]} 29. Qxg7+ {[%clk 0:00:19.7]} 29... Rxg7 {[%clk 0:00:04]} 30. Re4
{[%clk 0:00:17.9]} 30... Rgd7 {[%clk 0:00:04.7]} 31. a3 {[%clk 0:00:16]} 31...
Kg7 {[%clk 0:00:04.9]} 32. Rd3 {[%clk 0:00:15.1]} 32... Kf6 {[%clk 0:00:04.6]}
33. Kf1 {[%clk 0:00:14.8]} 33... Kf5 {[%clk 0:00:05.1]} 34. Rh4 {[%clk
0:00:13.9]} 34... Kg6 {[%clk 0:00:04.1]} 35. Ke2 {[%clk 0:00:12.6]} 35... b5
{[%clk 0:00:03.7]} 36. cxb5 {[%clk 0:00:11.9]} 36... axb5 {[%clk 0:00:04.6]} 37.
Kd2 {[%clk 0:00:12]} 37... Na5 {[%clk 0:00:04.4]} 38. Kc2 {[%clk 0:00:08.4]}
38... Rc7+ {[%clk 0:00:03.6]} 39. Kb1 {[%clk 0:00:08.5]} 39... Rcd7 {[%clk
0:00:03.3]} 40. Rhxd4 {[%clk 0:00:07.3]} 40... Rxd4 {[%clk 0:00:03.8]} 41. Rxd4
{[%clk 0:00:07.6]} 41... Re8 {[%clk 0:00:04.5]} 42. Rd6+ {[%clk 0:00:06.7]}
42... Kf5 {[%clk 0:00:04.4]} 43. Rb6 {[%clk 0:00:06.7]} 43... Re2 {[%clk
0:00:02.5]} 44. Rxb5+ {[%clk 0:00:06.1]} 44... Kg4 {[%clk 0:00:03.4]} 45. Rxa5
{[%clk 0:00:06.1]} 45... Rxf2 {[%clk 0:00:04]} 46. Rg5+ {[%clk 0:00:05.5]} 46...
Kf4 {[%clk 0:00:03.7]} 47. Rg7 {[%clk 0:00:06.2]} 47... h5 {[%clk 0:00:03.1]}
48. Nh4 {[%clk 0:00:06.3]} 48... Ke4 {[%clk 0:00:02.2]} 49. Rg5 {[%clk 0:00:06]}
49... Kd4 {[%clk 0:00:02.3]} 50. Rxh5 {[%clk 0:00:06.3]} 50... Kc4 {[%clk
0:00:02.9]} 51. Ka2 {[%clk 0:00:06.6]} 51... Kd3 {[%clk 0:00:03.1]} 52. Rg5
{[%clk 0:00:06.8]} 52... Kc2 {[%clk 0:00:03.6]} 53. Ng6 {[%clk 0:00:06.1]} 53...
Kc1 {[%clk 0:00:04.1]} 54. Rc5+ {[%clk 0:00:06.2]} 54... Kd1 {[%clk 0:00:03.8]}
55. g4 {[%clk 0:00:06.5]} 55... Rxh2 {[%clk 0:00:04.2]} 56. g5 {[%clk
0:00:06.9]} 56... Rg2 {[%clk 0:00:04.8]} 57. Ne7 {[%clk 0:00:06.7]} 57... Re2
{[%clk 0:00:03.2]} 58. Nd5 {[%clk 0:00:05.8]} 58... Rg2 {[%clk 0:00:03.2]} 59.
Nc3+ {[%clk 0:00:05.9]} 59... Kc1 {[%clk 0:00:02.7]} 60. Na4+ {[%clk 0:00:05.6]}
60... Kd1 {[%clk 0:00:02.7]} 61. Nb6 {[%clk 0:00:05.9]} 61... Kd2 {[%clk
0:00:02.6]} 62. a4 {[%clk 0:00:06.1]} 62... Rg4 {[%clk 0:00:03.1]} 63. b3 {[%clk
0:00:05.7]} 63... Kd3 {[%clk 0:00:02.7]} 64. Ka3 {[%clk 0:00:05.9]} 64... Rg1
{[%clk 0:00:02.8]} 65. a5 {[%clk 0:00:05.8]} 65... Ra1+ {[%clk 0:00:03.1]} 66.
Kb4 {[%clk 0:00:05.9]} 66... Kd4 {[%clk 0:00:03]} 67. Rc4+ {[%clk 0:00:05.8]}
67... Ke5 {[%clk 0:00:03.3]} 68. g6 {[%clk 0:00:05.6]} 68... Rg1 {[%clk
0:00:03.1]} 69. Rc6 {[%clk 0:00:05.3]} 69... Kd4 {[%clk 0:00:02.3]} 70. a6
{[%clk 0:00:05.4]} 70... Ra1 {[%clk 0:00:03]} 71. Na4 {[%clk 0:00:05.1]} 71...
Kd5 {[%clk 0:00:02.5]} 72. Rc5+ {[%clk 0:00:04.7]} 72... Kd6 {[%clk 0:00:02.9]}
73. a7 {[%clk 0:00:05]} 73... Rd1 {[%clk 0:00:02.9]} 74. a8=Q {[%clk 0:00:05.3]}
74... Rd4+ {[%clk 0:00:03.6]} 75. Ka3 {[%clk 0:00:05]} 75... Rd1 {[%clk
0:00:02.9]} 76. Qd8+ {[%clk 0:00:04.9]} 76... Ke6 {[%clk 0:00:03.3]} 77. Qxd1
{[%clk 0:00:03.4]} 77... Kf6 {[%clk 0:00:04.2]} 78. Qf1+ {[%clk 0:00:03.4]}
78... Kg7 {[%clk 0:00:05.1]} 79. Rc7+ {[%clk 0:00:03.6]} 79... Kh6 {[%clk
0:00:06]} 80. Qh3+ {[%clk 0:00:03.7]} 80... Kg5 {[%clk 0:00:06.9]} 81. Qg3+
{[%clk 0:00:03.8]} 81... Kf6 {[%clk 0:00:07.8]} 82. Qf4+ {[%clk 0:00:04.1]}
82... Ke6 {[%clk 0:00:08.4]} 83. Qe4+ {[%clk 0:00:04.3]} 83... Kf6 {[%clk
0:00:09.3]} 84. g7 {[%clk 0:00:04.8]} 84... Kg5 {[%clk 0:00:09]} 85. g8=Q+
{[%clk 0:00:05.6]} 85... Kh6 {[%clk 0:00:09.7]} 86. Qgh7+ {[%clk 0:00:05.9]}
86... Kg5 {[%clk 0:00:10.1]} 87. Qeh4# {[%clk 0:00:05.8]} 1-0

[Event "Late-Titled-Tuesday-Blitz-September-19-2023"]
[Site "Chess.com"]
[Date "2023.09.19"]
[Round "3"]
[White "azikom"]
[Black "Fleetw00dMac"]
[Result "1-0"]
[WhiteElo "2631"]
[BlackElo "2458"]
[TimeControl "180+1"]
[EndTime "14:29:33 PDT"]
[Termination "azikom won by resignation"]

1. e4 {[%clk 0:03:00.6]} 1... e5 {[%clk 0:02:59.5]} 2. Nc3 {[%clk 0:02:59.5]}
2... Nf6 {[%clk 0:02:58.3]} 3. Bc4 {[%clk 0:02:59.6]} 3... Nxe4 {[%clk
0:02:57.8]} 4. Qh5 {[%clk 0:02:58.9]} 4... Nd6 {[%clk 0:02:57.5]} 5. Qxe5+
{[%clk 0:02:51]} 5... Qe7 {[%clk 0:02:56.2]} 6. Qxe7+ {[%clk 0:02:50.9]} 6...
Bxe7 {[%clk 0:02:55.8]} 7. Bb3 {[%clk 0:02:48.3]} 7... c6 {[%clk 0:02:54.5]} 8.
Nf3 {[%clk 0:02:48.3]} 8... Nf5 {[%clk 0:02:53.3]} 9. Ne4 {[%clk 0:02:42.4]}
9... d5 {[%clk 0:02:48.6]} 10. Ng3 {[%clk 0:02:42.6]} 10... Na6 {[%clk
0:02:38.7]} 11. d4 {[%clk 0:02:34.3]} 11... Nc7 {[%clk 0:02:25.3]} 12. c3 {[%clk
0:02:33.7]} 12... Nxg3 {[%clk 0:02:19]} 13. hxg3 {[%clk 0:02:34.6]} 13... Bf5
{[%clk 0:02:18.6]} 14. Nh4 {[%clk 0:02:31.4]} 14... Bd3 {[%clk 0:02:18.1]} 15.
Be3 {[%clk 0:02:28.5]} 15... h6 {[%clk 0:02:14.5]} 16. Kd2 {[%clk 0:02:27.7]}
16... Bh7 {[%clk 0:02:13.7]} 17. g4 {[%clk 0:02:24.3]} 17... Bxh4 {[%clk
0:01:56.3]} 18. Rxh4 {[%clk 0:02:23.5]} 18... Ne6 {[%clk 0:01:56.5]} 19. Rah1
{[%clk 0:02:20.7]} 19... f6 {[%clk 0:01:46.1]} 20. Bd1 {[%clk 0:02:04.3]} 20...
Kf7 {[%clk 0:01:33.2]} 21. a4 {[%clk 0:01:44.2]} 21... Rhe8 {[%clk 0:01:29]} 22.
b3 {[%clk 0:01:43]} 22... Bg6 {[%clk 0:01:24.5]} 23. f3 {[%clk 0:01:35.2]} 23...
Rac8 {[%clk 0:01:21]} 24. R4h2 {[%clk 0:01:31.5]} 24... c5 {[%clk 0:01:15.9]}
25. dxc5 {[%clk 0:01:30.2]} 25... Nxc5 {[%clk 0:01:15.7]} 26. b4 {[%clk
0:01:17.4]} 26... Nd3 {[%clk 0:01:07.6]} 27. Bb3 {[%clk 0:01:12.7]} 27... Red8
{[%clk 0:01:05.1]} 28. Bxa7 {[%clk 0:01:06.2]} 28... Ne5 {[%clk 0:01:03.6]} 29.
Bd4 {[%clk 0:00:48.4]} 29... Nc4+ {[%clk 0:01:01.1]} 30. Bxc4 {[%clk 0:00:47.1]}
30... dxc4 {[%clk 0:00:57.3]} 31. a5 {[%clk 0:00:43.9]} 31... Re8 {[%clk
0:00:48.4]} 32. Ra1 {[%clk 0:00:41.5]} 32... Bd3 {[%clk 0:00:47.3]} 33. g3
{[%clk 0:00:37.1]} 33... Re6 {[%clk 0:00:45.3]} 34. Re1 {[%clk 0:00:28.2]} 34...
Rce8 {[%clk 0:00:43.5]} 35. Rxe6 {[%clk 0:00:27.9]} 35... Rxe6 {[%clk
0:00:43.6]} 36. f4 {[%clk 0:00:28.3]} 36... Re8 {[%clk 0:00:29.2]} 37. Rf2
{[%clk 0:00:26.9]} 37... Kg6 {[%clk 0:00:26.7]} 38. Rh2 {[%clk 0:00:21.8]} 38...
Kf7 {[%clk 0:00:26.1]} 39. g5 {[%clk 0:00:19.8]} 39... fxg5 {[%clk 0:00:25.1]}
40. fxg5 {[%clk 0:00:19.7]} 40... hxg5 {[%clk 0:00:25.2]} 41. Rh7 {[%clk
0:00:19.9]} 41... Re2+ {[%clk 0:00:24.5]} 42. Kd1 {[%clk 0:00:19.4]} 42... Bxh7
{[%clk 0:00:19.1]} 43. Kxe2 {[%clk 0:00:18.9]} 43... Be4 {[%clk 0:00:17.1]} 44.
Ke3 {[%clk 0:00:18.6]} 44... Bd5 {[%clk 0:00:16.8]} 45. Be5 {[%clk 0:00:18.6]}
45... g6 {[%clk 0:00:16.4]} 46. Kd4 {[%clk 0:00:18.5]} 46... Ke6 {[%clk
0:00:17.1]} 47. Bg7 {[%clk 0:00:18.2]} 47... g4 {[%clk 0:00:16.7]} 48. Kc5
{[%clk 0:00:17.8]} 48... Bf3 {[%clk 0:00:14.7]} 49. Kb6 {[%clk 0:00:17.3]} 49...
Kd7 {[%clk 0:00:13.7]} 50. Kc5 {[%clk 0:00:16.9]} 50... Be2 {[%clk 0:00:12.6]}
51. Be5 {[%clk 0:00:16.7]} 51... Kc8 {[%clk 0:00:12.6]} 52. Kb6 {[%clk 0:00:15]}
52... Bf3 {[%clk 0:00:11.2]} 53. b5 {[%clk 0:00:14.3]} 53... Be4 {[%clk
0:00:11.2]} 54. a6 {[%clk 0:00:13.8]} 54... bxa6 {[%clk 0:00:11]} 55. Kxa6
{[%clk 0:00:14]} 55... Bf3 {[%clk 0:00:10.4]} 56. Kb6 {[%clk 0:00:12.5]} 56...
Be4 {[%clk 0:00:09.8]} 57. Kc5 {[%clk 0:00:13.1]} 57... Bd3 {[%clk 0:00:10]} 58.
Bd4 {[%clk 0:00:11.8]} 58... Kb7 {[%clk 0:00:09.7]} 59. Kb4 {[%clk 0:00:11.7]}
59... Be2 {[%clk 0:00:09.5]} 60. Bg7 {[%clk 0:00:11.6]} 60... Bd3 {[%clk
0:00:09.6]} 61. Bf8 {[%clk 0:00:12.5]} 61... Be2 {[%clk 0:00:09.7]} 62. Be7
{[%clk 0:00:13.3]} 62... Bd3 {[%clk 0:00:09.9]} 63. Bg5 {[%clk 0:00:14.2]} 63...
Be2 {[%clk 0:00:10.2]} 64. Be3 {[%clk 0:00:14.6]} 64... Bd3 {[%clk 0:00:10.4]}
65. Kc5 {[%clk 0:00:14.8]} 65... Be2 {[%clk 0:00:10.6]} 66. b6 {[%clk
0:00:14.9]} 66... Bd3 {[%clk 0:00:10.7]} 67. Bf4 {[%clk 0:00:14.7]} 67... Be2
{[%clk 0:00:10.9]} 68. Bc7 {[%clk 0:00:14.8]} 68... Bd3 {[%clk 0:00:11]} 69. Kd4
{[%clk 0:00:15.1]} 69... Be2 {[%clk 0:00:11.2]} 70. Ke3 {[%clk 0:00:15]} 70...
Bd3 {[%clk 0:00:11.3]} 71. Kf2 {[%clk 0:00:15.2]} 71... Bf5 {[%clk 0:00:11.1]}
72. Ke3 {[%clk 0:00:15.1]} 72... Be6 {[%clk 0:00:11.4]} 73. Ke4 {[%clk 0:00:15]}
73... Bf5+ {[%clk 0:00:11.1]} 74. Kd5 {[%clk 0:00:14.6]} 74... Bd3 {[%clk
0:00:11.1]} 75. Kd4 {[%clk 0:00:13.8]} 75... Be2 {[%clk 0:00:11.3]} 76. Ke3
{[%clk 0:00:12.7]} 76... Bd3 {[%clk 0:00:11.5]} 77. Kf4 {[%clk 0:00:13.1]} 77...
Bf5 {[%clk 0:00:11.7]} 78. Kg5 {[%clk 0:00:13.5]} 78... Be6 {[%clk 0:00:09.9]}
79. Kxg6 {[%clk 0:00:13.3]} 79... Bd7 {[%clk 0:00:09.7]} 80. Kf6 {[%clk
0:00:13.5]} 80... Bc6 {[%clk 0:00:09.3]} 81. Ke5 {[%clk 0:00:13.5]} 81... Bf3
{[%clk 0:00:09.4]} 82. Kf4 {[%clk 0:00:13.7]} 82... Be2 {[%clk 0:00:09.4]} 83.
Ke4 {[%clk 0:00:13.8]} 83... Bf3+ {[%clk 0:00:08.8]} 84. Kd4 {[%clk 0:00:13.2]}
84... Be2 {[%clk 0:00:09.1]} 85. Kc5 {[%clk 0:00:13.5]} 85... Bd3 {[%clk
0:00:09.1]} 86. Bd8 {[%clk 0:00:13]} 86... Be2 {[%clk 0:00:09.3]} 87. Bg5 {[%clk
0:00:13.9]} 87... Bd3 {[%clk 0:00:09.4]} 88. Be3 {[%clk 0:00:14.8]} 88... Be2
{[%clk 0:00:09.7]} 89. Kb5 {[%clk 0:00:14.9]} 89... Bd3 {[%clk 0:00:10.3]} 90.
Kb4 {[%clk 0:00:14.1]} 90... Be2 {[%clk 0:00:10.8]} 91. Kc5 {[%clk 0:00:14.4]}
91... Bd3 {[%clk 0:00:11.5]} 92. Kd5 {[%clk 0:00:14.7]} 92... Be2 {[%clk
0:00:12]} 93. Ke5 {[%clk 0:00:15]} 93... Bd3 {[%clk 0:00:12.3]} 94. Kf4 {[%clk
0:00:15.9]} 94... Be2 {[%clk 0:00:12.7]} 95. Bd4 {[%clk 0:00:16.3]} 95... Bf3
{[%clk 0:00:12.8]} 96. Ke3 {[%clk 0:00:15.9]} 96... Bd5 {[%clk 0:00:12.4]} 97.
Bc5 {[%clk 0:00:15.9]} 97... Be6 {[%clk 0:00:12]} 98. Ke4 {[%clk 0:00:16]} 98...
Bf7 {[%clk 0:00:11.7]} 99. Kf5 {[%clk 0:00:15.4]} 99... Bh5 {[%clk 0:00:11.8]}
100. Kg5 {[%clk 0:00:15.7]} 1-0

[Event "Late-Titled-Tuesday-Blitz-September-19-2023"]
[Site "Chess.com"]
[Date "2023.09.19"]
[Round "3"]
[White "eCztery"]
[Black "Tomytoteph"]
[Result "0-1"]
[WhiteElo "2413"]
[BlackElo "2580"]
[TimeControl "180+1"]
[EndTime "14:29:58 PDT"]
[Termination "Tomytoteph won on time"]

1. e4 {[%clk 0:02:53.9]} 1... c5 {[%clk 0:02:59]} 2. Nf3 {[%clk 0:02:52.7]} 2...
g6 {[%clk 0:02:58.8]} 3. h4 {[%clk 0:02:46.9]} 3... h5 {[%clk 0:02:58.2]} 4. d4
{[%clk 0:02:46.4]} 4... cxd4 {[%clk 0:02:58.5]} 5. Qxd4 {[%clk 0:02:47.3]} 5...
Nf6 {[%clk 0:02:58.2]} 6. Nc3 {[%clk 0:02:44.3]} 6... Nc6 {[%clk 0:02:58.7]} 7.
Qa4 {[%clk 0:02:44.1]} 7... d6 {[%clk 0:02:58.6]} 8. e5 {[%clk 0:02:41.4]} 8...
dxe5 {[%clk 0:02:59.5]} 9. Nxe5 {[%clk 0:02:41.7]} 9... Qd4 {[%clk 0:02:58.9]}
10. Nc4 {[%clk 0:02:18.3]} 10... Ng4 {[%clk 0:02:54.1]} 11. Be3 {[%clk
0:02:13.4]} 11... Nxe3 {[%clk 0:02:53.3]} 12. fxe3 {[%clk 0:02:14.3]} 12... Qc5
{[%clk 0:02:49.7]} 13. Nb5 {[%clk 0:02:01]} 13... Bh6 {[%clk 0:02:09.7]} 14.
Nc7+ {[%clk 0:01:55.4]} 14... Kf8 {[%clk 0:02:09.4]} 15. Nxa8 {[%clk 0:01:55.6]}
15... Bxe3 {[%clk 0:02:07.1]} 16. Nxe3 {[%clk 0:01:46.9]} 16... Qxe3+ {[%clk
0:02:06.8]} 17. Be2 {[%clk 0:01:47.1]} 17... Bg4 {[%clk 0:02:06.1]} 18. Qc4
{[%clk 0:01:33.9]} 18... Kg7 {[%clk 0:01:54.1]} 19. Qc3+ {[%clk 0:01:28.6]}
19... Qxc3+ {[%clk 0:01:54.2]} 20. bxc3 {[%clk 0:01:29.5]} 20... Bxe2 {[%clk
0:01:50.9]} 21. Kxe2 {[%clk 0:01:30.4]} 21... Rxa8 {[%clk 0:01:51]} 22. Rad1
{[%clk 0:01:29.6]} 22... Ne5 {[%clk 0:01:48.6]} 23. Rh3 {[%clk 0:01:24.5]} 23...
Rc8 {[%clk 0:01:47.9]} 24. Re3 {[%clk 0:01:10.3]} 24... f6 {[%clk 0:01:47.1]}
25. a4 {[%clk 0:01:08.1]} 25... Rc4 {[%clk 0:01:41.5]} 26. a5 {[%clk 0:01:04]}
26... Rc5 {[%clk 0:01:39.8]} 27. Rb1 {[%clk 0:01:01]} 27... Rc7 {[%clk
0:01:37.7]} 28. Rb4 {[%clk 0:00:54.4]} 28... Kf7 {[%clk 0:01:36.2]} 29. Ree4
{[%clk 0:00:49.1]} 29... Rd7 {[%clk 0:01:22.4]} 30. Red4 {[%clk 0:00:47.9]}
30... Rc7 {[%clk 0:01:21.6]} 31. Kd2 {[%clk 0:00:47.8]} 31... Rc5 {[%clk
0:01:02.8]} 32. Rxb7 {[%clk 0:00:42.8]} 32... Rxa5 {[%clk 0:01:02.7]} 33. Rd8
{[%clk 0:00:38.3]} 33... Ra1 {[%clk 0:00:58.6]} 34. Rh8 {[%clk 0:00:36.9]} 34...
a5 {[%clk 0:00:49.1]} 35. Rh7+ {[%clk 0:00:37]} 35... Ke6 {[%clk 0:00:49.1]} 36.
Rhxe7+ {[%clk 0:00:36.2]} 36... Kf5 {[%clk 0:00:49.8]} 37. Ra7 {[%clk
0:00:30.6]} 37... Rg1 {[%clk 0:00:49.6]} 38. Rxa5 {[%clk 0:00:26.6]} 38... Rxg2+
{[%clk 0:00:49.1]} 39. Kc1 {[%clk 0:00:26.5]} 39... Rh2 {[%clk 0:00:44.6]} 40.
Ra4 {[%clk 0:00:18]} 40... Ng4 {[%clk 0:00:34.9]} 41. c4 {[%clk 0:00:17.2]}
41... Rxh4 {[%clk 0:00:34.4]} 42. c5 {[%clk 0:00:17.7]} 42... Rh1+ {[%clk
0:00:34.1]} 43. Kb2 {[%clk 0:00:17.9]} 43... Ne5 {[%clk 0:00:35]} 44. Ra6 {[%clk
0:00:15.8]} 44... Re1 {[%clk 0:00:33.4]} 45. Kc3 {[%clk 0:00:14.6]} 45... Re3+
{[%clk 0:00:33.5]} 46. Kd4 {[%clk 0:00:11.3]} 46... Re2 {[%clk 0:00:28.1]} 47.
Rc7 {[%clk 0:00:07.4]} 47... Rxc2 {[%clk 0:00:26.9]} 48. c6 {[%clk 0:00:06.7]}
48... h4 {[%clk 0:00:27.3]} 49. Rc8 {[%clk 0:00:05.6]} 49... h3 {[%clk
0:00:27.3]} 50. c7 {[%clk 0:00:06.1]} 50... h2 {[%clk 0:00:26.1]} 51. Ra1 {[%clk
0:00:05.6]} 51... g5 {[%clk 0:00:25.5]} 52. Kd5 {[%clk 0:00:05.3]} 52... g4
{[%clk 0:00:25.8]} 53. Rf1+ {[%clk 0:00:05.4]} 53... Nf3 {[%clk 0:00:24]} 54.
Kd6 {[%clk 0:00:04.6]} 54... Kf4 {[%clk 0:00:23.5]} 55. Rh8 {[%clk 0:00:04.2]}
55... g3 {[%clk 0:00:20.4]} 56. Rh4+ {[%clk 0:00:03.4]} 56... Kg5 {[%clk
0:00:18.5]} 57. Rh8 {[%clk 0:00:02.9]} 57... Kg4 {[%clk 0:00:18.1]} 58. Rg8+
{[%clk 0:00:02.9]} 58... Kf4 {[%clk 0:00:18.6]} 59. Kd7 {[%clk 0:00:02.6]} 59...
f5 {[%clk 0:00:18.2]} 60. c8=Q {[%clk 0:00:02.7]} 60... Rxc8 {[%clk 0:00:18.5]}
61. Kxc8 {[%clk 0:00:03.6]} 61... Ke3 {[%clk 0:00:15.1]} 62. Kd7 {[%clk
0:00:03.7]} 62... Ke2 {[%clk 0:00:15.1]} 63. Ra1 {[%clk 0:00:03.9]} 63... Ne5+
{[%clk 0:00:10.5]} 64. Ke6 {[%clk 0:00:04.2]} 64... Ng4 {[%clk 0:00:11.4]} 65.
Kxf5 {[%clk 0:00:04.3]} 65... g2 {[%clk 0:00:11.2]} 66. Rxg4 {[%clk 0:00:03.9]}
66... h1=Q {[%clk 0:00:10.2]} 67. Ra2+ {[%clk 0:00:04.4]} 67... Ke3 {[%clk
0:00:10.1]} 68. Rgxg2 {[%clk 0:00:04.8]} 68... Qh3+ {[%clk 0:00:08.6]} 69. Kf6
{[%clk 0:00:04.9]} 69... Qh6+ {[%clk 0:00:08.3]} 70. Ke5 {[%clk 0:00:05.2]}
70... Qf4+ {[%clk 0:00:07.8]} 71. Kd5 {[%clk 0:00:05.4]} 71... Qe4+ {[%clk
0:00:08.2]} 72. Kc5 {[%clk 0:00:05.7]} 72... Qd4+ {[%clk 0:00:08.5]} 73. Kb5
{[%clk 0:00:06.2]} 73... Qd3+ {[%clk 0:00:08.7]} 74. Kb4 {[%clk 0:00:06.5]}
74... Qd6+ {[%clk 0:00:09.1]} 75. Kc4 {[%clk 0:00:06.2]} 75... Qc7+ {[%clk
0:00:09.3]} 76. Kb3 {[%clk 0:00:06.1]} 76... Kf3 {[%clk 0:00:08.4]} 77. Raf2+
{[%clk 0:00:04.7]} 77... Ke3 {[%clk 0:00:09]} 78. Re2+ {[%clk 0:00:05.2]} 78...
Kf3 {[%clk 0:00:09.6]} 79. Rgf2+ {[%clk 0:00:05.2]} 79... Kg3 {[%clk 0:00:09.7]}
80. Rc2 {[%clk 0:00:05.5]} 80... Qb6+ {[%clk 0:00:09.5]} 81. Ka2 {[%clk
0:00:05.7]} 81... Qa5+ {[%clk 0:00:10.1]} 82. Kb1 {[%clk 0:00:05.9]} 82... Qe1+
{[%clk 0:00:10.7]} 83. Kb2 {[%clk 0:00:05]} 83... Qb4+ {[%clk 0:00:11.2]} 84.
Ka2 {[%clk 0:00:04.7]} 84... Qa5+ {[%clk 0:00:11.8]} 85. Kb1 {[%clk 0:00:05]}
85... Qb4+ {[%clk 0:00:11.4]} 86. Ka1 {[%clk 0:00:03.7]} 86... Qa3+ {[%clk
0:00:11.5]} 87. Kb1 {[%clk 0:00:03.8]} 87... Qb3+ {[%clk 0:00:11.6]} 88. Rb2
{[%clk 0:00:04]} 88... Qd1+ {[%clk 0:00:11.2]} 89. Ka2 {[%clk 0:00:04.4]} 89...
Kg4 {[%clk 0:00:12.1]} 90. Rg2+ {[%clk 0:00:04.2]} 90... Kf3 {[%clk 0:00:12.5]}
91. Rgc2 {[%clk 0:00:04.2]} 91... Qd5+ {[%clk 0:00:12.1]} 92. Rb3+ {[%clk
0:00:04.4]} 92... Ke4 {[%clk 0:00:11.3]} 93. Re2+ {[%clk 0:00:04.1]} 93... Kf4
{[%clk 0:00:10.8]} 94. Rc2 {[%clk 0:00:03.9]} 94... Qa5+ {[%clk 0:00:10.6]} 95.
Kb2 {[%clk 0:00:04.8]} 95... Qe5+ {[%clk 0:00:11.2]} 96. Rcc3 {[%clk 0:00:05.3]}
96... Qe2+ {[%clk 0:00:11.5]} 97. Ka3 {[%clk 0:00:05.6]} 97... Qa6+ {[%clk
0:00:12]} 98. Kb2 {[%clk 0:00:05.8]} 98... Qe2+ {[%clk 0:00:12.6]} 99. Rc2
{[%clk 0:00:06.4]} 99... Qe5+ {[%clk 0:00:12.4]} 100. Ka2 {[%clk 0:00:06.3]}
100... Qa5+ {[%clk 0:00:12.5]} 101. Kb1 {[%clk 0:00:06.3]} 101... Ke4 {[%clk
0:00:11.3]} 102. Rc4+ {[%clk 0:00:05.8]} 102... Kd5 {[%clk 0:00:11.5]} 103. Rcb4
{[%clk 0:00:05.8]} 103... Kc6 {[%clk 0:00:10.6]} 104. Kb2 {[%clk 0:00:05.4]}
104... Kc5 {[%clk 0:00:10.8]} 105. Kc3 {[%clk 0:00:04.6]} 105... Qa1+ {[%clk
0:00:10.2]} 106. Kc2 {[%clk 0:00:04.4]} 106... Qa2+ {[%clk 0:00:10.4]} 107. Rb2
{[%clk 0:00:04.5]} 107... Qa5 {[%clk 0:00:10.3]} 108. R4b3 {[%clk 0:00:03.4]}
108... Kc4 {[%clk 0:00:09.9]} 109. Rb1 {[%clk 0:00:02]} 109... Qa2+ {[%clk
0:00:08.3]} 110. R1b2 {[%clk 0:00:02.6]} 110... Qa4 {[%clk 0:00:08.7]} 111. Rb1
{[%clk 0:00:01.9]} 111... Kd4 {[%clk 0:00:07.3]} 112. Kb2 {[%clk 0:00:01.1]}
112... Qc4 {[%clk 0:00:05.8]} 0-1

[Event "Late-Titled-Tuesday-Blitz-September-19-2023"]
[Site "Chess.com"]
[Date "2023.09.19"]
[Round "4"]
[White "pirulillo"]
[Black "jaskol95"]
[Result "0-1"]
[WhiteElo "2376"]
[BlackElo "2546"]
[TimeControl "180+1"]
[EndTime "14:32:11 PDT"]
[Termination "jaskol95 won by resignation"]

1. e4 {[%clk 0:03:00.9]} 1... d5 {[%clk 0:03:00.3]} 2. exd5 {[%clk 0:02:56.3]}
2... Nf6 {[%clk 0:03:00.8]} 3. d4 {[%clk 0:02:49.2]} 3... Bg4 {[%clk 0:03:00.9]}
4. Be2 {[%clk 0:02:46.1]} 4... Bxe2 {[%clk 0:03:00.7]} 5. Qxe2 {[%clk 0:02:45]}
5... Qxd5 {[%clk 0:02:58.9]} 6. Nf3 {[%clk 0:02:45.4]} 6... Nc6 {[%clk 0:02:55]}
7. Be3 {[%clk 0:02:42.7]} 7... e6 {[%clk 0:02:50]} 8. O-O {[%clk 0:02:39]} 8...
Qh5 {[%clk 0:02:42.8]} 9. c4 {[%clk 0:02:29.4]} 9... Bd6 {[%clk 0:02:32]} 10. c5
{[%clk 0:02:16.4]} 10... Bxh2+ {[%clk 0:02:27.4]} 0-1

[Event "Late-Titled-Tuesday-Blitz-September-19-2023"]
[Site "Chess.com"]
[Date "2023.09.19"]
[Round "4"]
[White "jefferyx"]
[Black "Byniolus"]
[Result "1/2-1/2"]
[WhiteElo "3003"]
[BlackElo "2790"]
[TimeControl "180+1"]
[EndTime "14:32:21 PDT"]
[Termination "Game drawn by repetition"]

1. d4 {[%clk 0:03:00.9]} 1... d5 {[%clk 0:02:59.3]} 2. c4 {[%clk 0:03:01.6]}
2... c6 {[%clk 0:02:59.8]} 3. Nf3 {[%clk 0:03:02.3]} 3... Nf6 {[%clk 0:03:00.2]}
4. cxd5 {[%clk 0:03:03.2]} 4... cxd5 {[%clk 0:03:00.2]} 5. Nc3 {[%clk
0:03:04.1]} 5... Nc6 {[%clk 0:03:00.8]} 6. Bf4 {[%clk 0:03:04.8]} 6... Qb6
{[%clk 0:03:01]} 7. e3 {[%clk 0:02:45.8]} 7... Qxb2 {[%clk 0:02:59.5]} 8. Nb5
{[%clk 0:02:45.8]} 8... e5 {[%clk 0:02:58.9]} 9. a3 {[%clk 0:01:39.8]} 9... exf4
{[%clk 0:02:55.1]} 10. Rb1 {[%clk 0:01:36]} 10... Qa2 {[%clk 0:02:52.4]} 11. Ra1
{[%clk 0:01:33.9]} 11... Qb2 {[%clk 0:02:52.5]} 12. Rb1 {[%clk 0:01:34.2]} 12...
Qa2 {[%clk 0:02:53.1]} 13. Ra1 {[%clk 0:01:34.7]} 13... Qb2 {[%clk 0:02:53.3]}
14. Rb1 {[%clk 0:01:35.2]} 1/2-1/2